[Event "Oceania Zonal Women 2023"]
[Site "Melbourne"]
[Date "2023.01.26"]
[Round "6.5"]
[White "Lu, Lillian"]
[Black "Xu, Luna Yuexiu"]
[Result "0-1"]
[ECO "B52"]
[WhiteElo "1689"]
[BlackElo "1446"]
[Annotator "NA RC COMBH"]
[PlyCount "52"]
[EventDate "2023.01.09"]
[EventType "swiss"]
[EventCountry "AUS"]
[SourceTitle "playchess.com"]
[Source "ChessBase"]
[SourceQuality "1"]
[TimeControl "5400+30"]

1. e4 {[%emt 0:00:02]} c5 {[%emt 0:00:08]} 2. Nf3 {[%emt 0:00:12]} d6 {[%emt 0:00:06]} 3. Bb5+ {[%emt 0:00:04]} Bd7 {[%emt 0:00:14]} 4. Bxd7+ {[%emt 0:00:05]} Qxd7 {[%emt 0:01:05]} 5. c4 {[%emt 0:00:06]} Nc6 {[%emt 0:00:26]} 6. Nc3 {[%emt 0:00:16]} e6 {[%emt 0:00:44]} 7. d4 {[%emt 0:00:18]} cxd4 {[%emt 0:01:07]} 8. Nxd4 {[%emt 0:00:07]} Nf6 {[%emt 0:01:03]} 9. O-O {[%emt 0:00:53]} Be7 {[%emt 0:01:04]} 10. Be3 {[%emt 0:02:21]} O-O {[%emt 0:01:25]} 11. f3 {[%emt 0:05:30]} a6 {[%emt 0:01:22]} 12. a4 {[%emt 0:00:17]} Ne5 {[%emt 0:00:42]} 13. Qe2 {[%emt 0:04:22]} Rac8 {[%emt 0:00:34]} 14. b3 {[%emt 0:00:58]} Nc6 {[%emt 0:04:50]} 15. Rfd1 {[%emt 0:03:54]} Qc7 {[%emt 0:00:24]} 16. Rac1 {[%emt 0:01:43]} Nd7 {[%emt 0:01:04]} 17. Kh1 {[%emt 0:07:30]} Nc5 {[%emt 0:02:28]} 18. f4 {[%emt 0:02:32]} Nxd4 {[%emt 0:00:50]} 19. Bxd4 {[%emt 0:01:24]} Nxb3 {[%emt 0:00:28]} 20. Bxg7 {[%emt 0:15:09]} Kxg7 {[%emt 0:01:20]} 21. Qb2 {[%emt 0:00:05]} Bf6 {[%emt 0:00:53]} 22. Qxb3 {[%emt 0:00:24]} Qxc4 {[%emt 0:00:07]} 23. Qb1 {[%emt 0:13:18]} Bxc3 {[%emt 0:00:44]} 24. Rd3 {[%emt 0:00:05]} Qb4 {[%emt 0:01:10]} 25. Rdxc3 {[%emt 0:00:36]} Rxc3 {[%emt 0:00:28]} 26. Qa1 {[%emt 0:01:25]} Rfc8 {[%emt 0:00:17]} 0-1

[Event "Oceania Zonal Women 2023"]
[Site "Melbourne"]
[Date "2023.01.26"]
[Round "6.6"]
[White "Vincent Alaina"]
[Black "Zeng, Vera"]
[Result "1-0"]
[ECO "C54"]
[WhiteElo "1897"]
[BlackElo "1527"]
[Annotator "NA RC COMBH"]
[PlyCount "77"]
[EventDate "2023.01.09"]
[EventType "swiss"]
[EventCountry "AUS"]
[SourceTitle "playchess.com"]
[Source "ChessBase"]
[SourceQuality "1"]
[TimeControl "5400+30"]

1. e4 {[%emt 0:00:03]} e5 {[%emt 0:00:06]} 2. Nf3 {[%emt 0:00:13]} Nc6 {[%emt 0:00:08]} 3. Bc4 {[%emt 0:00:22]} Bc5 {[%emt 0:00:11]} 4. c3 {[%emt 0:00:26]} Nf6 {[%emt 0:00:09]} 5. d3 {[%emt 0:00:19]} O-O {[%emt 0:00:36]} 6. O-O {[%emt 0:00:29]} d5 {[%emt 0:03:49]} 7. exd5 {[%emt 0:03:26]} Nxd5 {[%emt 0:00:24]} 8. b4 {[%emt 0:01:08]} Bb6 {[%emt 0:05:04]} 9. Qb3 {[%emt 0:01:14]} Be6 {[%emt 0:10:15]} 10. Re1 {[%emt 0:01:11]} Qd6 {[%emt 0:04:29]} 11. Nbd2 {[%emt 0:08:00]} Rad8 {[%emt 0:04:03]} 12. Ne4 {[%emt 0:04:13]} Qe7 {[%emt 0:02:05]} 13. Neg5 {[%emt 0:02:54]} h6 {[%emt 0:03:13]} 14. Ne4 {[%emt 0:00:46]} Rfe8 {[%emt 0:04:50]} 15. Ng3 {[%emt 0:06:14]} Qf6 {[%emt 0:09:40]} 16. Be3 {[%emt 0:12:37]} Nxe3 {[%emt 0:03:42]} 17. fxe3 {[%emt 0:00:12]} Bxc4 {[%emt 0:02:41]} 18. dxc4 {[%emt 0:00:14]} e4 {[%emt 0:03:27]} 19. Nd4 {[%emt 0:01:17]} Bxd4 {[%emt 0:01:50]} 20. cxd4 {[%emt 0:00:08]} a6 {[%emt 0:02:57]} 21. Rad1 {[%emt 0:02:40]} Qg6 {[%emt 0:02:26]} 22. Rf1 {[%emt 0:03:11]} Qd6 {[%emt 0:05:49]} 23. a3 {[%emt 0:02:16]} g6 {[%emt 0:01:14]} 24. d5 {[%emt 0:05:54]} Na7 {[%emt 0:02:51]} 25. Rf4 {[%emt 0:00:36]} f5 {[%emt 0:00:52]} 26. h4 {[%emt 0:00:39]} h5 {[%emt 0:01:19]} 27. Nxf5 {[%emt 0:05:32]} gxf5 {[%emt 0:00:22]} 28. Rxf5 {[%emt 0:00:06]} Re5 {[%emt 0:01:14]} 29. c5 {[%emt 0:00:25]} Qe7 {[%emt 0:01:05]} 30. d6+ {[%emt 0:00:11]} Qe6 {[%emt 0:00:13]} 31. Rg5+ {[%emt 0:00:28]} Kf7 {[%emt 0:01:02]} 32. Rf1+ {[%emt 0:00:09]} Ke8 {[%emt 0:00:09]} 33. Rg8+ {[%emt 0:00:23]} Kd7 {[%emt 0:00:16]} 34. Rf7+ {[%emt 0:00:14]} Kc8 {[%emt 0:04:02]} 35. Rxc7+ {[%emt 0:00:10]} Kb8 {[%emt 0:00:05]} 36. Rxd8+ {[%emt 0:00:07]} Nc8 {[%emt 0:00:09]} 37. Qxe6 {[%emt 0:00:12]} Rxe6 {[%emt 0:00:06]} 38. Rcxc8+ {[%emt 0:00:07]} Ka7 {[%emt 0:00:07]} 39. Ra8# {[%emt 0:00:05]} 1-0